bitfinex-derivatives/quotes_BNBF0:USTF0_20250425
["timestamp","ask_amount","ask_price","bid_price","bid_amount"]
[1745571238838,1.18918469,611.34,609.47,0.30106918]
[1745571239039,1.18918469,611.34,609.46,1.166]
[1745571239237,1.18918469,611.33,609.47,0.30107075]
[1745571239834,1.18918469,611.32,609.47,0.30107075]
[1745571240339,1.47443761,611.32,609.47,0.30107075]
[1745571240535,1.18918469,611.31,609.46,1.166]
[1745571240739,1.18918469,611.31,609.47,0.30106848]
[1745571241241,1.18918469,611.3,609.47,0.30106848]
[1745571241639,1.18918469,611.3,609.46,1.166]
[1745571241832,0.28525292,611.32,609.46,1.166]
[1745571241833,1.18918469,611.29,609.47,0.30106895]
[1745571242240,1.18918469,611.28,609.47,0.30106895]
[1745571243041,1.18918469,611.27,609.47,0.30106895]
[1745571243843,1.18918469,611.26,609.47,0.30106895]
[1745571244236,1.18918469,611.26,609.46,1.166]
[1745571244437,1.18918469,611.25,609.46,1.166]
[1745571244941,0.28525292,611.32,609.46,1.166]
[1745571244942,1.18918469,611.24,609.47,0.30110041]
[1745571245142,1.18918469,611.23,609.47,0.30110041]
[1745571245842,1.18918469,611.22,609.47,0.30110041]
[1745571246038,1.18918469,611.21,609.47,0.30110041]
[1745571246845,1.18918469,611.21,609.48,1.049]
[1745571247039,1.18918469,611.2,609.49,0.30110041]
[1745571247744,1.18918469,611.19,609.49,0.30110041]
[1745571248244,1.47445164,611.18,609.5,0.30106721]
[1745571248440,1.47445164,611.18,609.49,0.30106721]
[1745571248743,1.47445164,611.18,609.5,0.30106721]
[1745571248943,1.47445164,611.18,609.49,0.30106721]
[1745571249343,1.18918469,611.17,609.49,0.30106721]
[1745571249645,1.18918469,611.17,609.48,1.049]
[1745571249940,1.18918469,611.17,609.49,0.30106721]
[1745571250137,1.18918469,611.16,609.49,0.30106721]
[1745571250543,1.18918469,611.15,609.49,0.30106721]
[1745571250844,1.18918469,611.14,609.49,0.30106721]
[1745571251244,1.18918469,611.13,609.49,0.30106721]
[1745571251540,1.18918469,611.13,609.55,1.04222854]
[1745571251746,1.18918469,611.13,609.56,0.30106721]
[1745571251940,1.18918469,611.12,609.56,0.30106721]
[1745571252545,1.18918469,611.11,609.56,0.30106721]
[1745571252750,1.18918469,611.11,609.55,1.04222854]
[1745571252949,1.18918469,611.1,609.56,1.70106476]
[1745571253251,1.18918469,611.1,609.57,0.30106476]
[1745571253452,1.18918469,611.09,609.57,0.30106476]
[1745571253752,1.18918469,611.08,609.57,0.30106476]
[1745571254246,1.47443878,611.07,609.56,1.4]
[1745571254849,1.18918469,611.06,609.56,1.4]
[1745571255454,1.18918469,611.05,609.56,1.4]
[1745571255956,1.18918469,611.04,609.56,1.4]
[1745571256257,1.18918469,611.03,609.56,1.4]
[1745571256758,1.18918469,611.02,609.56,1.4]
[1745571256958,1.18918469,611.01,609.56,1.4]
[1745571257552,1.18918469,611.0,609.56,1.4]
[1745571258155,1.18918469,610.99,609.56,1.4]
[1745571258459,1.18918469,610.98,609.56,1.4]
[1745571258659,1.18918469,610.98,609.56,2.628]
[1745571259765,1.18918469,610.97,609.56,2.628]
[1745571260059,1.18918469,610.96,609.56,2.628]
[1745571260560,1.18918469,610.95,609.56,2.628]
[1745571260957,1.18918469,610.94,609.56,2.628]
[1745571261661,1.18918469,610.93,609.56,2.628]
[1745571261954,1.18918469,610.92,609.56,2.628]
[1745571262461,1.18918469,610.91,609.56,2.628]
[1745571263260,1.18918469,610.9,609.56,2.628]
[1745571263561,1.18918469,610.89,609.56,2.628]
[1745571264261,1.18918469,610.88,609.56,2.628]
[1745571264963,1.18918469,610.87,609.56,2.628]
[1745571265765,1.18918469,610.86,609.56,2.628]
[1745571265966,1.18918469,610.85,609.57,0.30107011]
[1745571266463,1.18918469,610.84,609.56,2.628]
[1745571266964,1.18918469,610.83,609.56,2.628]
[1745571268159,1.18918469,610.82,609.56,2.628]
[1745571268364,1.18918469,610.81,609.56,2.628]
[1745571269066,1.18918469,610.8,609.56,2.628]
[1745571269767,1.18885605,610.79,609.56,2.628]
[1745571270366,1.18885605,610.78,609.56,2.628]
[1745571270966,1.18885605,610.77,609.56,2.628]
[1745571271167,1.18885605,610.77,609.56,3.906]
[1745571271767,1.18885605,610.76,609.56,3.906]
[1745571272162,1.18885605,610.75,609.56,3.906]
[1745571272466,1.18885605,610.74,609.56,3.906]
[1745571273064,1.18885605,610.73,609.56,3.906]
[1745571273467,1.18885605,610.72,609.56,3.906]
[1745571274064,1.18885605,610.71,609.56,3.906]
[1745571275069,1.18885605,610.7,609.56,3.906]
[1745571275570,0.28535583,610.77,609.56,3.906]
[1745571275571,1.18885605,610.69,609.56,3.906]
[1745571276470,1.18885605,610.68,609.56,3.906]
[1745571276766,1.18885605,610.67,609.56,3.906]
[1745571277071,1.18885605,610.66,609.56,3.906]
[1745571277872,1.18885605,610.65,609.56,3.906]
[1745571278173,1.18885605,610.65,609.56,5.178]
[1745571278373,1.18885605,610.64,609.56,5.178]
[1745571279068,1.18885605,610.63,609.56,5.178]
[1745571279673,1.18885605,610.62,609.56,5.178]
[1745571279974,1.18885605,610.61,609.56,5.178]
[1745571280877,1.18885605,610.6,609.56,5.178]
[1745571281073,1.18885605,610.59,609.56,5.178]
[1745571281671,1.18885605,610.58,609.56,5.178]
[1745571282176,1.18885605,610.57,609.56,5.178]
[1745571282872,1.18885605,610.56,609.56,5.178]
[1745571283680,1.18885605,610.55,609.56,5.178]
[1745571284482,1.18885605,610.54,609.56,5.178]
[1745571284681,1.18885605,610.53,609.56,5.178]
[1745571284981,1.18885605,610.52,609.56,5.178]
[1745571285381,1.18885605,610.51,609.56,5.178]
[1745571285981,1.18885605,610.5,609.56,5.178]
[1745571286383,1.18885605,610.49,609.56,5.178]
[1745571286883,1.18885605,610.48,609.56,5.178]
[1745571287684,1.18885605,610.47,609.56,5.178]
[1745571288380,1.18885605,610.46,609.56,5.178]
[1745571289286,1.18885605,610.45,609.56,5.178]
[1745571289688,1.18885605,610.44,609.56,5.178]
[1745571290187,1.18885605,610.43,609.56,3.778]
[1745571290580,1.18885605,610.42,609.56,3.778]
[1745571290887,1.18885605,610.41,609.56,2.55]
[1745571291889,1.18885605,610.4,609.56,2.55]
[1745571292584,1.18885605,610.39,609.56,2.55]
[1745571293184,1.18885605,610.38,609.56,2.55]
[1745571293989,1.18885605,610.37,609.56,2.55]
[1745571294887,1.18885605,610.36,609.56,2.55]
[1745571296094,1.18885605,610.35,609.56,2.55]
[1745571296792,1.18885605,610.34,609.56,2.55]
[1745571297091,1.18885605,610.33,609.56,2.55]
[1745571297893,1.18885605,610.32,609.56,2.55]
[1745571298393,1.18885605,610.31,609.56,2.55]
[1745571298794,1.18885605,610.3,609.56,2.55]
[1745571299593,1.18885605,610.29,609.56,2.55]
[1745571299792,1.18885605,610.28,609.56,2.55]
[1745571300195,1.18885605,610.27,609.56,2.55]
[1745571300891,1.18885605,610.26,609.56,2.55]
[1745571301290,1.18885605,610.25,609.56,2.55]
[1745571301695,1.18885605,610.24,609.56,2.55]
[1745571302095,1.18885605,610.23,609.56,2.55]
[1745571302695,1.18885605,610.22,609.56,2.55]
[1745571303196,1.18885605,610.21,609.56,2.55]
[1745571304098,1.18885605,610.2,609.56,2.55]
[1745571304904,1.18885605,610.19,609.56,2.55]
[1745571305204,1.18885605,610.19,609.56,1.278]
[1745571305503,1.18885605,610.18,609.56,1.278]
[1745571305704,1.18885605,610.17,609.56,1.278]
[1745571306404,1.18885605,610.16,609.56,1.278]
[1745571306906,1.18885605,610.15,609.56,1.278]
[1745571307708,1.18885605,610.14,609.56,1.278]
[1745571308208,1.18885605,610.13,609.56,1.278]
[1745571308607,1.18885605,610.12,609.56,1.278]
[1745571308807,1.18885605,610.11,609.56,1.278]
[1745571309405,1.18885605,610.1,609.56,1.278]
[1745571309806,1.18885605,610.09,609.56,1.278]
[1745571310105,1.18885605,610.08,609.56,1.278]
[1745571310507,1.18885605,610.07,609.56,1.278]
[1745571311103,1.18885605,610.06,609.56,1.278]
[1745571311508,1.18885605,610.05,609.56,1.278]
[1745571311805,1.18885605,610.04,609.56,1.278]
[1745571312409,1.18885605,610.03,609.56,1.278]
[1745571313112,1.18885605,610.02,609.56,1.278]
[1745571313812,1.18885605,610.01,609.56,1.278]
[1745571314612,1.18885605,610.0,609.56,1.278]
[1745571314811,1.18885605,609.99,609.56,1.278]
[1745571315111,1.18885605,609.98,609.56,1.278]
[1745571315509,1.18885605,609.97,609.56,1.278]
[1745571316011,1.18885605,609.96,609.56,1.278]
[1745571316513,1.18885605,609.95,609.56,1.278]
[1745571316909,1.18885605,609.94,609.56,1.278]
[1745571317814,0.28549161,610.57,609.56,1.278]
[1745571317815,1.18885605,609.93,609.56,1.278]
[1745571318215,1.18885605,609.93,609.52,1.058]
[1745571318410,1.18885605,609.92,609.52,1.058]
[1745571319111,1.18885605,609.91,609.52,1.058]
[1745571319415,1.18885605,609.9,609.52,1.058]
[1745571319915,1.18885605,609.89,609.52,1.058]
[1745571320716,1.18885605,609.88,609.52,1.058]
[1745571320910,1.18885605,609.87,609.52,1.058]
[1745571321412,1.18885605,609.86,609.52,1.058]
[1745571321916,1.18885605,609.85,609.52,1.058]
[1745571322215,1.18885605,609.84,609.52,1.058]
[1745571322410,1.18885605,609.84,609.27,0.827]
[1745571322815,1.18885605,609.83,609.27,0.827]
[1745571323112,1.18885605,609.82,609.27,0.827]
[1745571323617,1.18885605,609.81,609.27,0.827]
[1745571324317,1.18885605,609.8,609.27,0.827]
[1745571325014,0.28550684,610.55,609.27,0.827]
[1745571325015,1.18885605,609.79,609.27,0.827]
[1745571325317,1.18885605,609.78,609.27,0.827]
[1745571325915,1.18885605,609.77,609.27,0.827]
[1745571326619,1.18885605,609.76,609.27,0.827]
[1745571327119,1.18885605,609.75,609.27,0.827]
[1745571327914,1.18885605,609.74,609.27,0.827]
[1745571328818,1.18885605,609.73,609.27,0.827]
[1745571329821,1.18885605,609.72,609.27,0.827]
[1745571330319,1.18885605,609.71,609.27,0.827]
[1745571330514,1.18885605,609.7,609.27,0.827]
[1745571330919,1.18885605,609.69,609.27,0.827]
[1745571332115,1.18885605,609.68,609.27,0.827]
[1745571332821,1.18885605,609.67,609.27,0.827]
[1745571333020,1.18885605,609.66,609.27,0.827]
[1745571333523,1.18885605,609.65,609.27,0.827]
[1745571334117,1.18885605,609.64,609.27,0.827]
[1745571334518,1.18885605,609.63,609.27,0.827]
[1745571334922,1.18885605,609.62,609.27,0.827]
[1745571335423,1.18885605,609.61,609.27,0.827]
[1745571336323,0.28556306,610.57,609.27,0.827]
[1745571336324,1.18885605,609.6,609.27,0.827]
[1745571336621,1.18885605,609.59,609.27,0.827]
[1745571337623,1.18885605,609.58,609.27,0.827]
[1745571337823,1.18885605,609.57,609.27,0.827]
[1745571338223,1.18885605,609.56,609.27,0.827]
[1745571338922,1.18885605,609.55,609.27,0.827]
[1745571339626,1.18885605,609.54,609.27,0.827]
[1745571340121,1.18885605,609.53,609.27,0.827]
[1745571341226,1.18885605,609.52,609.27,0.827]
[1745571341428,0.2855865,610.52,609.27,0.827]
[1745571341927,1.18651522,610.51,609.27,0.827]
[1745571342326,1.18651522,610.5,609.27,0.827]
[1745571343429,1.18651522,610.49,609.27,0.827]
[1745571343829,1.18651522,610.48,609.27,0.827]
[1745571344029,1.18651522,610.48,609.28,0.30122232]
[1745571344231,1.18651522,610.47,609.28,0.30122232]
[1745571344430,1.18651522,610.46,609.28,0.30122232]
[1745571345025,1.18651522,610.45,609.28,0.30122232]
[1745571345225,1.18651522,610.45,609.27,0.827]
[1745571345427,1.18651522,610.45,609.32,1.04222854]
[1745571345631,1.18651522,610.44,609.32,1.04222854]
[1745571346031,1.18651522,610.43,609.32,1.04222854]
[1745571346732,1.18651522,610.42,609.32,1.04222854]
[1745571347226,1.18651522,610.41,609.32,1.04222854]
[1745571347431,1.18651522,610.41,609.06,1.04222854]
[1745571347631,1.18651522,610.4,609.07,0.30118946]
[1745571348327,1.18651522,610.39,609.07,0.30118946]
[1745571349133,1.18651522,610.38,609.07,0.30118946]
[1745571349334,1.18651522,610.37,609.08,0.834]
[1745571349533,1.18651522,610.37,609.09,0.30118946]
[1745571350234,1.18651522,610.36,609.09,0.30118946]
[1745571350834,1.18651522,610.35,609.09,0.30118946]
[1745571351134,1.18651522,610.35,609.08,0.834]
[1745571351334,1.18651522,610.35,609.09,0.30120986]
[1745571351835,1.18651522,610.34,609.09,0.30120986]
[1745571352136,1.18651522,610.33,609.09,0.30120986]
[1745571352534,1.18651522,610.32,609.09,0.30120986]
[1745571352835,1.18651522,610.32,609.14,1.04222854]
[1745571353034,1.18651522,610.31,609.15,0.30120986]
[1745571353831,1.18651522,610.3,609.15,0.30120986]
[1745571354231,1.18651522,610.29,609.14,1.04222854]
[1745571354435,1.18651522,610.29,609.15,0.30120556]
[1745571354736,1.18651522,610.28,609.15,0.30120556]
[1745571355037,0.28547405,610.7,609.15,0.30120556]
[1745571355038,1.18651522,610.27,609.15,0.30120556]
[1745571355332,1.18651522,610.27,609.16,0.30120556]
[1745571355535,1.18651522,610.26,609.13,0.30120556]
[1745571355736,1.18651522,610.25,609.12,1.04222854]
[1745571356031,1.18651522,610.25,609.13,0.30119773]
[1745571356237,1.18651522,610.24,609.13,0.30119773]
[1745571356536,1.18651522,610.23,609.13,0.30119773]
[1745571356738,1.18651522,610.23,609.14,1.271]
[1745571356932,1.18651522,610.23,609.15,0.30119773]
[1745571357336,1.18651522,610.22,609.15,0.30119773]
[1745571357737,1.18651522,610.21,609.15,0.30119773]
[1745571358337,1.18651522,610.2,609.15,0.30119773]
[1745571358838,1.18651522,610.19,609.14,1.271]
[1745571359038,1.18651522,610.19,609.15,0.3011275]
[1745571359238,1.18651522,610.18,609.15,0.3011275]
[1745571359939,1.18651522,610.17,609.15,0.3011275]
[1745571360339,1.18651522,610.16,609.15,0.3011275]
[1745571360739,1.18651522,610.15,609.15,0.3011275]
[1745571362139,1.18651522,610.14,609.15,0.3011275]
[1745571362340,1.18651522,610.14,609.26,1.04222854]
[1745571362640,1.18651522,610.13,609.27,0.3011275]
[1745571363335,1.18651522,610.12,609.27,0.3011275]
[1745571363841,1.18651522,610.12,609.27,1.34335604]
[1745571364042,1.18651522,610.12,609.28,0.3011275]
[1745571364341,1.18651522,610.11,609.28,0.3011275]
[1745571364537,1.18651522,610.11,609.27,1.04222854]
[1745571364740,1.18651522,610.11,609.28,0.30110483]
[1745571365141,1.18651522,610.1,609.28,0.30110483]
[1745571365442,1.18651522,610.09,609.28,0.30110483]
[1745571366040,1.18651522,610.08,609.27,1.04222854]
[1745571366344,1.18651522,610.08,609.28,1.34331971]
[1745571366543,1.18651522,610.07,609.29,0.30109117]
[1745571366738,1.18651522,610.06,609.29,0.30109117]
[1745571367144,1.18651522,610.05,609.29,0.30109117]
[1745571367542,1.18651522,610.04,609.28,1.04222854]
[1745571367744,1.18651522,610.04,609.29,0.30109235]
[1745571368149,1.18651522,610.03,609.29,0.30109235]
[1745571368447,1.18651522,610.02,609.29,0.30109235]
[1745571368751,1.18651522,610.01,609.29,0.30109235]
[1745571369343,1.18651522,610.0,609.29,0.30109235]
[1745571369548,1.18651522,610.0,609.26,0.30109235]
[1745571369748,1.18651522,610.0,609.27,0.30109235]
[1745571369948,1.18651522,610.0,609.26,0.30109235]
[1745571370147,1.18651522,609.99,609.26,0.30109235]
[1745571370849,1.18651522,609.98,609.26,0.30109235]
[1745571371249,1.18651522,609.97,609.26,0.30109235]
[1745571371648,1.18651522,609.96,609.26,0.30109235]
[1745571372150,1.18651522,609.95,609.25,1.009]
[1745571372350,1.18651522,609.94,609.26,0.30112036]
[1745571373354,1.18651522,609.93,609.26,0.30112036]
[1745571373752,1.18651522,609.92,609.26,0.30112036]
[1745571374752,1.18651522,609.91,609.26,0.30112036]
[1745571375353,1.18651522,609.9,609.26,0.30112036]
[1745571376047,1.18651522,609.89,609.26,0.30112036]
[1745571376755,1.18651522,609.88,609.26,0.30112036]
[1745571376957,1.18651522,609.87,609.3,1.04222854]
[1745571377353,1.18651522,609.87,609.31,0.30115188]
[1745571377554,1.18651522,609.86,609.31,0.30115188]
[1745571377958,1.18651522,609.85,609.31,0.30115188]
[1745571378560,1.18651522,609.84,609.31,0.30115188]
[1745571379556,1.18651522,609.83,609.32,0.30115188]
[1745571379860,1.18651522,609.83,609.33,0.30115188]
[1745571380056,1.18651522,609.82,609.34,0.30118118]
[1745571380357,1.18651522,609.82,609.35,0.30118118]
[1745571380557,1.18651522,609.82,609.19,0.30118118]
[1745571380758,1.18651522,609.82,609.2,0.30118118]
[1745571380959,1.18651522,609.81,609.19,0.30118118]
[1745571381158,1.18651522,609.81,609.2,0.30118118]
[1745571381357,1.18651522,609.81,609.19,0.30118118]
[1745571381558,1.18651522,609.8,609.14,2.31322854]
[1745571381761,1.18651522,609.8,609.15,0.30118017]
[1745571382462,1.18651522,609.79,609.15,0.30118017]
[1745571382663,1.18651522,609.79,609.14,2.31322854]
[1745571382863,1.18651522,609.79,609.15,0.30118072]
[1745571383064,1.18651522,609.79,609.14,1.04222854]
[1745571383266,1.18651522,609.78,609.15,0.30118029]
[1745571383967,1.18651522,609.77,609.15,0.30118029]
[1745571384261,1.18651522,609.77,609.24,1.04222854]
[1745571384466,1.18651522,609.76,609.25,0.30118029]
[1745571384665,0.28551972,610.7,609.25,0.30118029]
[1745571384666,1.18651522,609.75,609.25,0.30118029]
[1745571385268,1.18651522,609.74,609.25,0.30118029]
[1745571386168,1.18651522,609.74,609.24,1.04222854]
[1745571386369,1.18651522,609.73,609.25,0.30120106]
[1745571386565,1.18651522,609.72,609.25,0.30120106]
[1745571386964,1.18651522,609.72,609.14,0.30120106]
[1745571387769,1.18651522,609.71,609.14,0.30120106]
[1745571388170,1.18651522,609.7,609.14,0.30120106]
[1745571388372,1.18651522,609.7,609.15,1.04222854]
[1745571388672,1.18651522,609.69,609.16,0.30120106]
[1745571389171,2.13310576,611.77,609.16,0.30120106]
[1745571389371,0.28553963,610.7,609.16,0.30120106]
[1745571389670,1.18562741,610.69,609.16,0.30120106]
[1745571389871,1.18562741,610.68,609.16,0.30120106]
[1745571390171,1.18562741,610.68,609.16,1.3434296]
[1745571390371,0.28543541,610.67,609.17,0.30120106]
[1745571390670,1.18562741,610.66,609.17,0.30120106]
[1745571390876,1.18562741,610.66,609.16,1.04222854]
[1745571391068,1.18562741,610.66,609.17,0.30120556]
[1745571391670,1.18562741,610.65,609.17,0.30120556]
[1745571391975,1.18562741,610.64,609.17,0.30120556]
[1745571392275,1.18562741,610.63,609.17,0.30120556]
[1745571392476,1.18562741,610.63,609.18,0.30120618]
[1745571392675,1.18562741,610.63,609.19,0.30120618]
[1745571392877,1.18562741,610.62,609.2,0.30120618]
[1745571393077,1.18562741,610.62,609.21,0.30120618]
[1745571393376,1.18562741,610.61,609.22,0.30120618]
[1745571393577,1.18562741,610.61,609.17,0.30120618]
[1745571393772,1.18562741,610.61,609.18,0.30120618]
[1745571393973,1.18562741,610.61,609.12,0.30120618]
[1745571394176,1.18562741,610.6,609.12,0.30120618]
[1745571394479,1.18562741,610.6,609.19,0.30120618]
[1745571394675,1.18562741,610.59,609.19,0.30120618]
[1745571394872,1.18562741,610.58,609.19,0.30120618]
[1745571395477,1.18562741,610.57,609.19,0.30120618]
[1745571395776,1.18562741,610.56,609.19,0.30120618]
[1745571396780,1.18562741,610.55,609.13,0.30120618]
[1745571397079,1.18562741,610.54,609.14,0.30120618]
[1745571397279,1.18562741,610.54,609.15,0.30120618]
[1745571397477,1.18562741,610.54,609.13,0.30120618]
[1745571397676,1.18562741,610.54,609.14,0.30120618]
[1745571397980,1.18562741,610.53,609.15,0.30120618]
[1745571398181,1.18562741,610.53,609.13,0.30120618]
[1745571398383,1.18562741,610.52,609.14,0.30120618]
[1745571398580,1.18562741,610.52,609.13,0.30120618]
[1745571399077,1.18562741,610.52,609.09,0.30120618]
[1745571399278,1.18562741,610.51,609.1,0.30120618]
[1745571399480,1.18562741,610.51,609.11,0.3012113]
[1745571399777,1.18562741,610.5,609.12,0.3012113]
[1745571399982,1.18562741,610.5,609.09,0.3012113]
[1745571400181,1.18562741,610.49,609.1,0.3012113]
[1745571400481,1.18562741,610.49,609.11,0.3012113]
[1745571400781,1.18562741,610.49,609.12,0.3012113]
[1745571400976,1.18562741,610.48,609.13,0.3012113]
[1745571401176,1.18562741,610.48,609.14,0.3012113]
[1745571401376,1.18562741,610.47,609.15,0.3012113]
[1745571401677,1.18562741,610.47,609.16,0.3012113]
[1745571401883,1.18562741,610.47,609.09,0.3012113]
[1745571402082,1.18562741,610.47,609.1,0.3012113]
[1745571402278,1.18562741,610.46,609.09,0.3012113]
[1745571402480,1.18562741,610.45,609.09,0.3012113]
[1745571402680,1.18562741,610.45,609.1,0.30119175]
[1745571402879,1.18562741,610.45,609.09,0.30119175]
[1745571403082,1.18562741,610.44,609.11,1.061]
[1745571403279,1.18562741,610.44,609.12,0.30119175]
[1745571403879,1.18562741,610.43,609.11,1.061]
[1745571404385,2.13310576,611.94,609.12,0.30116502]
[1745571404386,1.18562741,610.42,609.12,0.30116502]
[1745571404686,1.18562741,610.41,609.12,0.30116502]
[1745571405287,1.18562741,610.4,609.12,0.30116502]
[1745571405586,1.18562741,610.39,609.12,0.30116502]
[1745571405779,1.18562741,610.39,609.11,1.061]
[1745571405983,1.18562741,610.38,609.12,0.30116568]
[1745571406486,1.18562741,610.37,609.13,1.283]
[1745571406687,1.18562741,610.37,609.14,0.30116568]
[1745571406988,1.18562741,610.36,609.14,0.30116568]
[1745571407287,1.18562741,610.35,609.2,1.04222854]
[1745571407487,1.18562741,610.35,609.21,0.30116568]
[1745571408183,1.18562741,610.34,609.21,0.30116568]
[1745571408783,1.18562741,610.33,609.21,0.30116568]
[1745571409088,1.18562741,610.32,609.21,0.30116568]
[1745571409689,1.18562741,610.31,609.21,0.30116568]
[1745571410189,0.28544009,610.77,609.21,0.30116568]
[1745571410190,1.18562741,610.3,609.25,1.04222854]
[1745571410489,1.18562741,610.29,609.26,0.30114767]
[1745571411290,1.18562741,610.28,609.26,0.30114767]
[1745571411788,1.18562741,610.27,609.26,0.30114767]
[1745571411989,1.18562741,610.27,609.25,1.04222854]
[1745571412189,1.18562741,610.26,609.26,0.30114963]
[1745571412487,1.18562741,610.25,609.26,0.30114963]
[1745571412892,1.18562741,610.24,609.26,0.30114963]
[1745571413192,1.18562741,610.24,609.26,1.34337817]
[1745571413391,1.18562741,610.24,609.27,0.30114963]
[1745571413591,1.18562741,610.23,609.28,0.30115001]
[1745571413787,1.18562741,610.23,609.29,0.30115001]
[1745571413992,1.18562741,610.22,609.3,0.30115001]
[1745571414192,1.18562741,610.21,609.31,0.30115001]
[1745571414390,1.18562741,610.21,609.32,0.30115001]
[1745571414586,1.18562741,610.21,609.33,0.30115001]
[1745571414791,1.18562741,610.21,609.27,0.30115001]
[1745571414992,1.18562741,610.2,609.28,0.30115001]
[1745571415187,0.28543775,610.81,609.16,0.28543775]
[1745571415188,1.18562741,610.19,609.32,1.04222854]
[1745571415392,1.18562741,610.19,609.33,0.30115001]
[1745571415592,1.18562741,610.18,609.33,0.30115001]
[1745571415893,1.18562741,610.17,609.33,0.30115001]
[1745571416394,1.18562741,610.16,609.33,0.30115001]
[1745571416594,1.18562741,610.16,609.32,2.14922854]
[1745571416791,1.18562741,610.15,609.33,0.30115263]
[1745571417193,1.18562741,610.14,609.33,0.30115263]
[1745571417490,1.18562741,610.13,609.33,0.30115263]
[1745571417694,1.18562741,610.12,609.33,0.30115263]
[1745571417895,1.18562741,610.12,609.32,1.107]
[1745571418296,1.18562741,610.11,609.32,1.107]
[1745571418696,1.18562741,610.1,609.32,1.107]
[1745571419493,1.18562741,610.09,609.32,1.107]
[1745571419793,1.18562741,610.08,609.32,1.107]
[1745571420391,1.18562741,610.07,609.32,1.107]
[1745571421402,1.18562741,610.06,609.32,1.107]
[1745571422001,1.18562741,610.05,609.32,1.107]
[1745571422796,1.18562741,610.05,609.33,0.30112848]
[1745571423001,1.18562741,610.04,609.33,0.30112848]
[1745571423604,1.18562741,610.03,609.33,0.30112848]
[1745571423901,1.18562741,610.02,609.33,0.30112848]
[1745571424305,1.18562741,610.01,609.33,0.30112848]
[1745571424704,1.18562741,610.0,609.33,0.30112848]
[1745571425705,1.18562741,609.99,609.33,0.30112848]
[1745571426305,1.18562741,609.98,609.33,0.30112848]
[1745571426606,1.18562741,609.98,609.44,1.04222854]
[1745571426908,1.18562741,609.97,609.44,1.04222854]
[1745571427107,1.18562741,609.97,609.45,0.30112653]
[1745571428008,1.18562741,609.96,609.45,0.30112653]
[1745571428708,1.18562741,609.96,609.46,0.30112653]
[1745571429006,1.18562741,609.96,609.47,0.30112653]
[1745571429207,1.18562741,609.95,609.34,0.30112653]
[1745571429806,1.18562741,609.94,609.34,0.30112653]
[1745571430703,1.18562741,609.93,609.35,0.30112653]
[1745571430907,1.18562741,609.92,609.33,0.30112653]
[1745571431207,1.18562741,609.92,609.34,0.30112653]
[1745571431407,1.18562741,609.92,609.35,0.30112653]
[1745571431607,1.18562741,609.92,609.36,0.30112653]
[1745571431807,1.18562741,609.91,609.32,2.14922854]
[1745571432010,1.18562741,609.91,609.33,0.30113387]
[1745571432907,1.18562741,609.9,609.33,0.30113387]
[1745571433112,1.18562741,609.9,609.34,0.30113424]
[1745571433306,1.18562741,609.9,609.33,0.30113424]
[1745571433611,1.18562741,609.89,609.34,0.30113424]
[1745571433806,1.18562741,609.89,609.33,0.30113424]
[1745571434006,1.18562741,609.89,609.34,0.30113424]
[1745571434210,1.18562741,609.88,609.33,0.30113424]
[1745571434410,1.18562741,609.88,609.34,0.30113424]
[1745571434612,1.18562741,609.88,609.32,1.107]
[1745571434814,1.18562741,609.87,609.32,1.107]
[1745571435010,1.18562741,609.87,609.33,0.30116431]
[1745571435309,1.18562741,609.86,609.33,0.30116431]
[1745571436010,1.18562741,609.85,609.33,0.30116431]
[1745571436214,1.18562741,609.85,609.32,1.107]
[1745571436409,0.28545883,610.84,609.32,1.107]
[1745571436410,1.18562741,609.84,609.33,0.30116224]
[1745571436615,1.18562741,609.83,609.33,0.30116224]
[1745571437211,1.18562741,609.82,609.33,0.30116224]
[1745571437615,1.18562741,609.81,609.33,0.30116224]
[1745571438118,1.18562741,609.8,609.33,0.30116224]
[1745571438319,1.18562741,609.8,609.36,1.04222854]
[1745571438520,1.18562741,609.8,609.37,0.30116224]
[1745571438720,1.18562741,609.79,609.37,0.30116224]
[1745571439119,1.18562741,609.78,609.37,0.30116224]
[1745571439619,1.18562741,609.77,609.37,0.30116224]
[1745571439923,1.18562741,609.76,609.37,0.30116224]
[1745571440620,1.18562741,609.75,609.37,0.30116224]
[1745571440821,1.18562741,609.75,609.36,1.04222854]
[1745571441018,1.18562741,609.75,609.33,1.04222854]
[1745571441224,1.18562741,609.75,609.34,0.30118003]
[1745571441622,1.18562741,609.74,609.33,1.04222854]
[1745571441922,1.18562741,609.73,609.33,1.04222854]